{"text_format":"3","workbook":"xlsx","n_sheets":4,"sheets":["قائمة التسوق","تصنيف الميزانية","قائمة المهام","قائمة المشاركة"],"not_rendered":{"charts":2,"images":2,"defined_names":12},"read":"whole","date_system":"1900"}

{"sheet":"قائمة التسوق","index":0,"n_rows":25,"n_cols":8,"rows_kept":25,"merged":[[0,1,0,3],[2,1,2,7],[3,1,3,2],[4,4,6,7]]}
[null,"العودة إلى المدرسة",null,null,"المخطط"]
[]
[null,"تعقب مستوى تقدم التسوق مقابل مبالغ الميزانية التي تم إدخالها في \"تصنيف الميزانية\"."]
[null,"ملخص الميزانية",null,null,{"$f":"\"تقدم عملية الشراء (\"&COUNTIFS(قائمة_الاختيار[المشتريات], \">0\")&\" من \"&COUNTIFS(قائمة_الاختيار[المطلوب شراؤه], \">0\")&\")\"","v":"تقدم عملية الشراء (1 من 6)"}]
[null,"الميزانية",{"v":1500,"d":"ر.س.‏ 1,500.00"},null,{"$f":"IFERROR(COUNTIFS(قائمة_الاختيار[المطلوب شراؤه],\">0\",قائمة_الاختيار[المشتريات],\">0\")/مجموع_الأصناف_المطلوب_سراؤها,0)","v":{"v":0.16666666666666666,"d":"17%"}}]
[null,"إجمالي قائمة التسوق",{"$f":"IFERROR(SUM(إجمالي_قائمة_الاختيار), \"\")","v":{"v":365,"d":"ر.س.‏ 365.00"}}]
[null,"النقدية المتبقية",{"$f":"IFERROR(C5-C6, \"\")","v":{"v":1135,"d":"ر.س.‏ 1,135.00"}}]
[null,"قائمة التسوق"]
[null,"الصنف","الفئة","الكمية","المطلوب شراؤه","التكلفة","المشتريات","إجمالي التكلفة"]
[null,"الرياضيات","كتب نصية",1,1,{"v":55,"d":"ر.س.‏ 55.00"},1,{"$f":"IFERROR(قائمة_الاختيار[الكمية]*قائمة_الاختيار[التكلفة], \"\")","v":{"v":55,"d":"ر.س.‏ 55.00"}}]
[null,"اللغة الإنجليزية","كتب نصية",1,1,null,null,{"$f":"IFERROR(قائمة_الاختيار[الكمية]*قائمة_الاختيار[التكلفة], \"\")","v":0}]
[null,"حقيبة الظهر","مستلزمات",1,null,{"v":30,"d":"ر.س.‏ 30.00"},null,{"$f":"IFERROR(قائمة_الاختيار[الكمية]*قائمة_الاختيار[التكلفة], \"\")","v":{"v":30,"d":"ر.س.‏ 30.00"}}]
[null,"الحاسبة","مستلزمات",1,{"$nulls":3},{"$f":"IFERROR(قائمة_الاختيار[الكمية]*قائمة_الاختيار[التكلفة], \"\")","v":0}]
[null,"أقلام تمييز","مستلزمات",3,{"$nulls":3},{"$f":"IFERROR(قائمة_الاختيار[الكمية]*قائمة_الاختيار[التكلفة], \"\")","v":0}]
[null,"زي موحد","ملابس",2,1,{"v":100,"d":"ر.س.‏ 100.00"},null,{"$f":"IFERROR(قائمة_الاختيار[الكمية]*قائمة_الاختيار[التكلفة], \"\")","v":{"v":200,"d":"ر.س.‏ 200.00"}}]
[null,"قميص، زر لأعلى","ملابس",4,{"$nulls":3},{"$f":"IFERROR(قائمة_الاختيار[الكمية]*قائمة_الاختيار[التكلفة], \"\")","v":0}]
[null,"قميص، قمصان بأكمام قصيرة","ملابس",5,{"$nulls":3},{"$f":"IFERROR(قائمة_الاختيار[الكمية]*قائمة_الاختيار[التكلفة], \"\")","v":0}]
[null,"سراويل قصيرة","ملابس",2,{"$nulls":3},{"$f":"IFERROR(قائمة_الاختيار[الكمية]*قائمة_الاختيار[التكلفة], \"\")","v":0}]
[null,"أحذية رياضية","ملابس",2,1,null,null,{"$f":"IFERROR(قائمة_الاختيار[الكمية]*قائمة_الاختيار[التكلفة], \"\")","v":0}]
[null,"جوارب","ملابس",10,{"$nulls":3},{"$f":"IFERROR(قائمة_الاختيار[الكمية]*قائمة_الاختيار[التكلفة], \"\")","v":0}]
[null,"جاكيت خفيف لفصل الربيع","ملابس",1,1,{"v":80,"d":"ر.س.‏ 80.00"},null,{"$f":"IFERROR(قائمة_الاختيار[الكمية]*قائمة_الاختيار[التكلفة], \"\")","v":{"v":80,"d":"ر.س.‏ 80.00"}}]
[null,"سُترات","ملابس",1,{"$nulls":3},{"$f":"IFERROR(قائمة_الاختيار[الكمية]*قائمة_الاختيار[التكلفة], \"\")","v":0}]
[null,"قميص ثقيل","ملابس",1,{"$nulls":3},{"$f":"IFERROR(قائمة_الاختيار[الكمية]*قائمة_الاختيار[التكلفة], \"\")","v":0}]
[null,"ملابس داخلية","ملابس",10,{"$nulls":3},{"$f":"IFERROR(قائمة_الاختيار[الكمية]*قائمة_الاختيار[التكلفة], \"\")","v":0}]
[null,"جاكيت شتوي","ملابس",1,1,null,null,{"$f":"IFERROR(قائمة_الاختيار[الكمية]*قائمة_الاختيار[التكلفة], \"\")","v":0}]

{"sheet":"تصنيف الميزانية","index":1,"n_rows":6,"n_cols":3,"rows_kept":6}
[null,"تصنيف الميزانية"]
[null,"إضافة فئات ومبالغ ميزانية للمقارنة مع \"قائمة التسوق\" لديك."]
[null,"الفئة","إجمالي التكلفة"]
[null,"ملابس",{"$f":"IFERROR(SUMIFS(قائمة_الاختيار[إجمالي التكلفة],قائمة_الاختيار[الفئة],الفئة[الفئة]), \"\")","v":{"v":280,"d":"ر.س.‏ 280.00"}}]
[null,"مستلزمات",{"$f":"IFERROR(SUMIFS(قائمة_الاختيار[إجمالي التكلفة],قائمة_الاختيار[الفئة],الفئة[الفئة]), \"\")","v":{"v":30,"d":"ر.س.‏ 30.00"}}]
[null,"كتب نصية",{"$f":"IFERROR(SUMIFS(قائمة_الاختيار[إجمالي التكلفة],قائمة_الاختيار[الفئة],الفئة[الفئة]), \"\")","v":{"v":55,"d":"ر.س.‏ 55.00"}}]

{"sheet":"قائمة المهام","index":2,"n_rows":22,"n_cols":3,"rows_kept":22}
[null,"قائمة المهام"]
[null,"تعقب كل الأنشطة التي تحتاج إلى تنفيذها قبل بدء الدراسة."]
[null,"تم","المهمة"]
[null,"x","أكمل كافة نماذج التسجيل"]
[null,null,"ضع جدولاً لفحوصات المدرسة البصرية والبدنية إذا تطلب الأمر"]
[null,null,"تحقق من كافة التطعيمات المطلوبة"]
[null,null,"احصل على ملاحظات من خلال إرشادات الجرعة لجميع الأدوية المطلوبة من الطبيب"]
[null,null,"راجع الزي المدرسي الموحد"]
[null,null,"احصل على قائمة باللوازم المدرسية"]
[null,null,"تقابل مع المعلم"]
[null,null,"حدد أسلوب الاتصال المفضل بالمعلم (الهاتف أو البريد الإلكتروني أو الملاحظات المكتوبة)"]
[null,null,"تجول في المدرسة مع طفلك"]
[null,null,"ساعد طفلك في تذكر أرقام هاتف المنزل وهاتف العمل وعنوان المنزل"]
[null,null,"جهّز وسائل النقل وقم بتحديد نقطة اجتماع آمنة وتدرب على الروتين اليومي"]
[null,null,"في حالة الذهاب مشياً، يجب التدريب على المشي في الطريق إلى المدرسة مع طفلك بضع مرات"]
[null,null,"في حالة الذهاب باستخدام السيارة الجماعية، يجب تعريف طفلك على كافه سائقي السيارات المحددين"]
[null,null,"في حالة الذهاب باستخدام الحافلة العامة، يجب تحديد أوقات ومحطات توقف الحافلات العامة"]
[null,null,"جهز للحصول على رعاية الطفل/رعاية ما بعد المدرسة"]
[null,null,"خطط لقائمة وجبات الإفطار والوجبات المدرسية الخفيفة ووجبات الغداء المجهزة والوجبات الخفيفة بعد المدرسة"]
[null,null,"حدد جدول وموقع الواجب المنزلي"]
[null,null,"ضع الروتين اليومي لوقت النوم قبل أسبوعين من الدراسة على الأقل"]
[null,null,"قم بإعداد تقويم لجميع أنشطة المدرسة وأحداثها"]

{"sheet":"قائمة المشاركة","index":3,"n_rows":4,"n_cols":5,"rows_kept":4}
[null,"قائمة المشاركة",null,null,"شارك هذه القائمة مع أشخاص آخرين بحيث يمكنهم المساهمة. حدد المشاركة في الزاوية العلوية اليسرى أو اضغط على ALT، ثم غق. احفظ الملف على OneDrive وأرسل الارتباط إلى أصدقائك."]
[null,"الاسم","البريد الإلكتروني","مشتركة؟"]
[null,"الشخص 1","someone@email.com","نعم"]
[null,"الشخص 2","someone@email.com","لا"]